Cogmind - Beta 16 @@@ ROGUE MODE // 2025.12.28 @ 15:44:44 Player: tanukistars115 Result: Destroyed by G-47 Trooper with Particle Gun Performance ------------- Evolutions (2) 1000 Regions Visited (5) 1000 Robots Destroyed (10) 50 Value Destroyed (263) 263 Prototype IDs (1) 20 Alien Tech Used (0) 0 Bonus (0) 0 TOTAL SCORE: 2333 Bonus ------- None Cogmind --------- Core Integrity 0/550 Matter 285/300 Energy 100/100 System Corruption 0% Temperature Cool (9) Movement Core (350) Ox6 Location -8/Materials Parts ------- > --- POWER (1) -------- (None) > --- PROPULSION (3) --- (None) > --- UTILITY (3) ------ Large Storage Unit > --- WEAPON (4) ------- (None) > --- INVENTORY (15) --- (None) Peak State ------------ > --- POWER ------------ Ion Engine > --- PROPULSION ------- Aluminum Leg Aluminum Leg Improved VTOL Module > --- UTILITY ---------- Large Storage Unit High-capacity Battery > --- WEAPON ----------- Light Assault Rifle Slug Cannon > --- INVENTORY -------- (None) [Rating: 14] Favorites ----------- Power Light Ion Engine Engine Light Ion Engine Propulsion Aluminum Leg Leg Aluminum Leg Flight Unit Improved VTOL Module Utility Large Storage Unit Device Shield Generator Storage Large Storage Unit Weapon Light Assault Rifle Energy Gun EM Pulse Gun Ballistic Gun Light Assault Rifle Ballistic Cannon Slug Cannon Build | -11 -10 -10 -10 -9 -8 ------- Run | Yrd Mat Min Exi Min Mat Slots Evolved 4 | . . . . . 4 Power . | . . . . . . Propulsion 1 | . . . . . 1 Utility 1 | . . . . . 1 Weapon 2 | . . . . . 2 Parts Attached 13 | 5 . 1 3 2 2 Power 2 | 1 . . . 1 . Engine 2 | 1 . . . 1 . Core . | . . . . . . Reactor . | . . . . . . Propulsion 4 | 2 . . . 1 1 Treads . | . . . . . . Leg 3 | 2 . . . 1 . Wheel . | . . . . . . Hover . | . . . . . . Flight 1 | . . . . . 1 Utility 4 | . . . 3 . 1 Device 1 | . . . . . 1 Storage 3 | . . . 3 . . Processor . | . . . . . . Hackware . | . . . . . . Protection . | . . . . . . Artifact . | . . . . . . Weapon 3 | 2 . 1 . . . Energy Gun 1 | 1 . . . . . Energy Cannon . | . . . . . . Ballistic Gun 1 | 1 . . . . . Ballistic Cannon 1 | . . 1 . . . Launcher . | . . . . . . Special Weapon . | . . . . . . Impact Weapon . | . . . . . . Slashing Weapon . | . . . . . . Piercing Weapon . | . . . . . . Special Melee Weapon . | . . . . . . Unidentified Prototypes 1 | . . . . . 1 Parts Lost 10 | . 1 . . 2 7 Power 2 | . . . . 1 1 Propulsion 3 | . . . . 1 2 Utility 2 | . . . . . 2 Weapon 3 | . 1 . . . 2 Highest Loss Streak 7 | . 1 . . 1 7 To Critical Strikes . | . . . . . . Average Backups . | . . . . . . Power . | . . . . . . Propulsion . | . . . . . . Utility . | . . . . . . Weapon . | . . . . . . Tool/Special . | . . . . . . Unused Backups . | . . . . . . Power . | . . . . . . Propulsion . | . . . . . . Utility . | . . . . . . Weapon . | . . . . . . Tool/Special . | . . . . . . Average Slot Usage (%) 81 | . 71 62 83 95 52 Engine 12 | . 14 14 14 10 6 Leg 26 | . 28 28 28 27 12 Storage 14 | . . . 12 28 18 Energy Gun 1 | . 14 . . . . Ballistic Gun 13 | . 14 14 14 14 6 Ballistic Cannon 11 | . . 5 14 14 7 Peak Build Rating 14 | 5 5 8 10 10 14 Average Rating 8 | 3 5 5 8 9 8 On Entrance 6 | . 5 4 8 10 10 Avg Prop Armor Cover (%) . | . . . . . . Naked Turns . | . . . . . . Heaviest Build 39 | 6 6 11 35 37 39 Greatest Support 20 | 20 20 20 20 20 20 Greatest Overweight (x) 10 | . . . 1 3 10 Average Overweight (x) . | . . . . 1 1 Largest Inventory Capacity 35 | 5 5 5 35 15 15 Average Capacity 11 | 5 5 5 12 15 15 Most Carried 3 | 3 . 1 2 1 1 Average Carried . | . . . . . . Final Capacity 15 | 5 5 5 15 15 15 Final Carried . | . . . . . . Class Distribution -------------------- 100% | Mutant Dominant Class ---------------- Mutant | -10/Materials Mutant | -10/Mines Mutant | -10/Exiles Mutant | -9/Mines Mutant | -8/Materials Resources | -11 -10 -10 -10 -9 -8 ----------- Run | Yrd Mat Min Exi Min Mat Matter Collected 452 | 131 115 19 . 147 40 Remotely . | . . . . . . Salvage Created 269 | . . 47 . 173 49 Parts 14 | . . 4 . 9 1 Haulers Intercepted . | . . . . . . Recyclers Shooed 2 | . . 2 . . . Parts Field Recycled . | . . . . . . Retrieved Matter . | . . . . . . Parts Self-Destructed . | . . . . . . Prevented . | . . . . . . Parts Restored . | . . . . . . Kills | -11 -10 -10 -10 -9 -8 ------- Run | Yrd Mat Min Exi Min Mat Combat Hostiles Destroyed 8 | . . 3 . 4 1 Melee 2 | . . 1 . . 1 Guns 3 | . . 2 . 1 . Cannons 3 | . . . . 3 . Classes Destroyed 5 | . . 1 . 4 . Builder 1 | . . . . 1 . Recycler 1 | . . . . 1 . Swarmer 3 | . . 3 . . . Grunt 4 | . . . . 3 1 Duelist 1 | . . . . 1 . Best Kill Streak 4 | . . 3 . 4 1 Combat Bots Only 3 | . . 3 . 2 1 Max Kills in Single Turn 2 | . . 1 . 2 1 Gunslinging . | . . . . . . Exploded . | . . . . . . Melee 1 | . . 1 . . 1 Uniques/NPCs Destroyed . | . . . . . . Combat | -11 -10 -10 -10 -9 -8 -------- Run | Yrd Mat Min Exi Min Mat Hostile Shots Fired 213 | . 37 22 . 25 129 Missed 69 | . 14 3 . 9 43 Hits 144 | . 23 19 . 16 86 Melee 3 | . . . . 3 . Projectile 141 | . 23 19 . 13 86 Critical Strikes 4 | . . 1 . 1 2 Damage Taken 1818 | . 185 148 . 274 1211 Core 747 | . 9 75 . 110 553 Absorbed by Shields 137 | . . . . . 137 Core Remaining (%) 61 | 100 . . . 22 . Volleys Fired 54 | . 5 21 . 16 12 Largest 2 | . 2 2 . 2 2 Hottest 60 | . 60 60 . 60 60 Shots Fired 87 | . 10 23 . 32 22 Gun 57 | . 10 21 . 16 10 Cannon 30 | . . 2 . 16 12 Launcher . | . . . . . . Special . | . . . . . . Kinetic 82 | . 5 23 . 32 22 Thermal . | . . . . . . Explosive . | . . . . . . Electromagnetic 5 | . 5 . . . . Robot Hit Streak 4 | . 2 3 . 4 3 Robot Miss Streak 4 | . 3 4 . 3 3 Penetration Max . | . . . . . . Secondary Targets . | . . . . . . Shots Hit Robots 45 | . 4 12 . 18 11 Core Hits 26 | . 2 5 . 13 6 Critical Kills . | . . . . . . Critical Parts Destroyed 2 | . . . . 1 1 Critical Strikes 2 | . . . . 1 1 Destroy 2 | . . . . 1 1 Melee Attacks . | . . . . . . Impact . | . . . . . . Slashing . | . . . . . . Piercing . | . . . . . . Sneak Attacks . | . . . . . . Combat Hostiles . | . . . . . . Follow-up Attacks . | . . . . . . Damage Inflicted 905 | . 45 113 . 424 323 Guns 280 | . 43 91 . 98 48 Cannons 600 | . . 17 . 314 269 Explosions . | . . . . . . Melee . | . . . . . . Ramming 25 | . 2 5 . 12 6 Kinetic 850 | . 13 108 . 412 317 Thermal . | . . . . . . Explosive . | . . . . . . Electromagnetic 30 | . 30 . . . . Impact . | . . . . . . Slashing . | . . . . . . Piercing . | . . . . . . Highest Corruption . | . . . . . . Average Corruption . | . . . . . . Corruption Purged . | . . . . . . Corruption Blocked . | . . . . . . Overload Shots . | . . . . . . Overflow Damage . | . . . . . . Projectiles . | . . . . . . Explosions . | . . . . . . Melee . | . . . . . . Knockbacks 6 | . . . . 2 4 Impact . | . . . . . . Kinetic 6 | . . . . 2 4 Secondary . | . . . . . . Self-Inflicted Damage 1 | . . . . . 1 Shots . | . . . . . . Rammed 8 | . . . . . 8 Targets Rammed 15 | . 1 2 . 4 8 Kicked 7 | . 1 2 . 4 . Crushed . | . . . . . . Highest Temperature 83 | . 38 20 . 83 53 Average Temperature 29 | . 21 15 . 36 22 Received Heat Transfer 578 | . 18 . . 123 437 Siege Activations . | . . . . . . Martial Activations . | . . . . . . Shielding Activations . | . . . . . . Robots Disrupted . | . . . . . . Combat Hostiles . | . . . . . . Robots Corrupted . | . . . . . . Combat Hostiles . | . . . . . . Parts Fried . | . . . . . . Impact Corruptions . | . . . . . . Robots Melted . | . . . . . . Combat Hostiles . | . . . . . . Parts Melted . | . . . . . . Heat Transferred . | . . . . . . Parts Sabotaged . | . . . . . . Parts Stolen . | . . . . . . Parts Stripped . | . . . . . . Power Chain Reactions . | . . . . . . Alert | -11 -10 -10 -10 -9 -8 ------- Run | Yrd Mat Min Exi Min Mat Maximum Alert Level . | . . . . . . Low Security (%) 100 | 100 100 100 . 100 100 Level 1 . | . . . . . . Level 2 . | . . . . . . Level 3 . | . . . . . . Level 4 . | . . . . . . Level 5 . | . . . . . . High Security . | . . . . . . Max Security . | . . . . . . Peak Influence 60 | . 4 60 . 56 30 Initial 12 | . . . . . 12 Average 10 | . . 19 . 11 4 Influence Increases 240 | . 8 70 . 129 33 Destroy 0b10 Robot/C 160 | . . 60 . 80 20 Destroy 0b10 Robot/NC 10 | . . . . 10 . Destroy Leader 40 | . . 10 . 20 10 Successful Hack 8 | . 8 . . . . Disable Machine 15 | . . . . 15 . Destroy Structure 7 | . . . . 4 3 Influence Decreases 230 | . 8 70 . 96 56 Entered New Map 21 | . . . . . 21 Time Decay 176 | . 8 70 . 76 22 Lost Part 33 | . . . . 20 13 Squads Dispatched 1 | . 1 . . . . Investigation . | . . . . . . Extermination . | . . . . . . Reinforcement 1 | . 1 . . . . Assault . | . . . . . . Garrison . | . . . . . . Intercept . | . . . . . . Searches Triggered . | . . . . . . Construction Impeded . | . . . . . . Haulers Reinforced . | . . . . . . Active Scanning Responses . | . . . . . . Cargo Convoy Interrupts . | . . . . . . Stealth | -11 -10 -10 -10 -9 -8 --------- Run | Yrd Mat Min Exi Min Mat Distress Signals . | . . . . . . Communications Jammed . | . . . . . . Distress Signals . | . . . . . . Times Spotted 19 | . 7 3 . 4 5 Peak Tracking Total 6 | . 6 3 . 2 5 Tactical Retreats . | . . . . . . Traps | -11 -10 -10 -10 -9 -8 ------- Run | Yrd Mat Min Exi Min Mat Traps Triggered . | . . . . . . Indirectly . | . . . . . . Trap Hack Attempts . | . . . . . . Triggered . | . . . . . . Disarmed . | . . . . . . Reprogrammed 1 | . 1 . . . . Reused . | . . . . . . Traps Extracted . | . . . . . . Installed . | . . . . . . Triggered . | . . . . . . Machines | -11 -10 -10 -10 -9 -8 ---------- Run | Yrd Mat Min Exi Min Mat Machines Disabled 1 | . . . . 1 . Max in Single Turn 1 | . . . . 1 . Machines Repaired . | . . . . . . Machines Dismantled . | . . . . . . Machines Sabotaged . | . . . . . . Overloaded Fab Kills . | . . . . . . Hacking | -11 -10 -10 -10 -9 -8 --------- Run | Yrd Mat Min Exi Min Mat Machines Accessed 4 | . 3 . 1 . . Terminals 3 | . 3 . . . . Fabricators . | . . . . . . Repair Stations . | . . . . . . Recycling Units . | . . . . . . Scanalyzers . | . . . . . . Garrison Access . | . . . . . . Total Hacks 38 | . 15 . 23 . . Successful 27 | . 4 . 23 . . Failed 11 | . 11 . . . . Catastrophic . | . . . . . . Database Lockouts . | . . . . . . Manual . | . . . . . . Terminals 15 | . 15 . . . . Fabricators . | . . . . . . Repair Stations . | . . . . . . Recycling Units . | . . . . . . Scanalyzers . | . . . . . . Garrison Access . | . . . . . . Terminal Hacks 27 | . 4 . 23 . . Record 23 | . . . 23 . . Robot Analysis 1 | . 1 . . . . Locate Traps 1 | . 1 . . . . Reprogram Traps 1 | . 1 . . . . Dispatch Records 1 | . 1 . . . . Fabricator Hacks . | . . . . . . Repair Station Hacks . | . . . . . . Recycling Unit Hacks . | . . . . . . Scanalyzer . | . . . . . . Garrison Access Hacks . | . . . . . . Unauthorized Hacks . | . . . . . . Terminals . | . . . . . . Fabricators . | . . . . . . Repair Stations . | . . . . . . Recycling Units . | . . . . . . Scanalyzers . | . . . . . . Garrison Access . | . . . . . . Data Cores Recovered . | . . . . . . Used . | . . . . . . Hacking Detections 3 | . 3 . . . . Full Trace Events 1 | . 1 . . . . Feedback Events . | . . . . . . Feedback Blocked . | . . . . . . Robot Schematics Acquired . | . . . . . . Robots Built . | . . . . . . Authchips . | . . . . . . Time . | . . . . . . Total Robot Build Rating . | . . . . . . Part Schematics Acquired . | . . . . . . Parts Built . | . . . . . . Authchips . | . . . . . . Time . | . . . . . . Total Part Build Rating . | . . . . . . Part Studies Acquired . | . . . . . . Parts Repaired . | . . . . . . Time . | . . . . . . Parts Recycled . | . . . . . . Recycled Matter . | . . . . . . Retrieved Matter . | . . . . . . Retrieved Components . | . . . . . . Parts Scanalyzed . | . . . . . . Part Schematics Acquired . | . . . . . . Parts Damaged . | . . . . . . Bothacking | -11 -10 -10 -10 -9 -8 ------------ Run | Yrd Mat Min Exi Min Mat Used RIF Installer . | . . . . . . Robots Hacked . | . . . . . . Non-combat . | . . . . . . Combat . | . . . . . . Robot Hacks Applied . | . . . . . . Relay Couplers Released . | . . . . . . Fabnet Peak Effective % . | . . . . . . Robots Rewired . | . . . . . . Allies Hacked . | . . . . . . Hacks Repelled . | . . . . . . Allies | -11 -10 -10 -10 -9 -8 -------- Run | Yrd Mat Min Exi Min Mat Total Allies . | . . . . . . Largest Group . | . . . . . . Highest-Rated Group . | . . . . . . Highest-Rated Ally . | . . . . . . Total Orders . | . . . . . . Ally Attacks . | . . . . . . Total Damage . | . . . . . . Kills . | . . . . . . Allies Corrupted . | . . . . . . Allies Melted . | . . . . . . Intel | -11 -10 -10 -10 -9 -8 ------- Run | Yrd Mat Min Exi Min Mat Active Infowar (turns) . | . . . . . . Robot Analysis Total 1 | . 1 . . . . Derelict Logs Recovered 2 | . . . . 2 . Drone Launches . | . . . . . . Drone Recoveries . | . . . . . . Exploration | -11 -10 -10 -10 -9 -8 ------------- Run | Yrd Mat Min Exi Min Mat Turns Passed 1878 | 44 145 234 774 534 147 Spaces Moved 1049 | 33 109 159 463 248 37 Core 9 | 7 . . . . 2 Treads . | . . . . . . Legs 1040 | 26 109 159 463 248 35 Wheels . | . . . . . . Hover . | . . . . . . Flight . | . . . . . . Fastest Speed 50 | 50 120 120 120 190 190 Average Speed 159 | 105 120 120 166 192 205 Slowest Speed 550 | 120 120 120 190 330 550 Overloaded Moves . | . . . . . . Propulsion Burnouts . | . . . . . . Robots Hopped . | . . . . . . Potential Cave-ins . | . . . . . . Cave-ins Triggered . | . . . . . . Exploration Rate (%) 31 | 4 23 26 80 49 4 Regions Visited 5 Branch Regions 3 Pre-discovered Areas 1 | . . . 1 . . Known Exits Taken . | . . . . . . Unknown Exits Taken 5 | 1 1 1 1 1 . Scrap Searched . | . . . . . . Spaces Dug . | . . . . . . Terrain Destroyed 9 | . . 1 . 5 3 Melee . | . . . . . . Projectile 8 | . . 1 . 5 2 AOE . | . . . . . . Terrain Rammed . | . . . . . . Walls Destroyed . | . . . . . . Machines Disabled . | . . . . . . Actions | -11 -10 -10 -10 -9 -8 --------- Run | Yrd Mat Min Exi Min Mat Total 1147 | 42 114 183 469 273 66 Wait 6 | . . . . 2 4 Move 1044 | 32 108 158 462 247 37 Hop . | . . . . . . Pick Up 13 | 5 . 1 3 2 2 Fast Attach . | . . . . . . Attach 13 | 5 . 1 3 2 2 Detach . | . . . . . . Swap . | . . . . . . Drop 2 | . . . 1 . 1 Fire 54 | . 5 21 . 16 12 Melee . | . . . . . . Ram 8 | . . . . . 8 Kick 7 | . 1 2 . 4 . Crush . | . . . . . . Escape Stasis . | . . . . . . Rewire . | . . . . . . Trap . | . . . . . . Miscellaneous . | . . . . . . Route ------- -11/Scrapyard -10/Materials -10/Mines -10/Exiles (discovered 2 exits: [*Min x2]) -9/Mines -8/Materials History --------- Turn | Location | Event 2 | -11/Scrapyard | Discovered new exit (range 16) 45 | -11/Scrapyard | Entered Materials 144 | -10/Materials | Discovered new exit (range 7) 190 | -10/Materials | Entered Mines 227 | -10/Mines | Met a Derelict bent on vengeance 288 | -10/Mines | Assembled infested the area 312 | -10/Mines | Build established: Mutant 322 | -10/Mines | A weapon hastily lodged in a ceiling crevice suddenly fell to the ground 371 | -10/Mines | Met 8R-AWN 419 | -10/Mines | Discovered new exit (range 5) 424 | -10/Mines | Entered Exiles 441 | -10/Exiles | Discovered new exit (range 15) 454 | -10/Exiles | Welcomed by 8R-AWN 483 | -10/Exiles | Met EX-HEX 534 | -10/Exiles | Met EX-DEC 541 | -10/Exiles | Learned location of Zion (-6) 649 | -10/Exiles | Discovered new exit (range 12) 791 | -10/Exiles | Visited The Gauntlet 1198 | -10/Exiles | Entered Mines 1390 | -9/Mines | Learned Materials stockpile data 1546 | -9/Mines | Core integrity fell below 50% 1619 | -9/Mines | Discovered new exit (range 3) 1732 | -9/Mines | Entered Materials 1732 | -8/Materials | Evolved 4 slots: Propulsion x1, Utility x1, Weapon x2 1855 | -8/Materials | Core integrity fell below 50% 1869 | -8/Materials | Core integrity fell below 20% 1879 | -8/Materials | Destroyed by G-47 Trooper with Particle Gun Last Messages --------------- Penetrated by Slug. Slammed into G-50 Soldier. Penetrated by Slug. Slammed into G-50 Soldier. Acquired 3 matter. Slammed into G-50 Soldier. G-50 Soldier destroyed. Acquired 37 matter. R-06 Scavenger collects Adv. Heat Sink. Slug penetrates Wall. Slammed into H-55 Commando. Penetrated by Slug. Slammed into H-55 Commando. Destabilizing: Core damaged (-16). R-06 Scavenger collects Wheel. Hcp. Battery destroyed. Slammed into H-55 Commando. R-06 Scavenger collects Sml. Matter Pod. Slammed into H-55 Commando. Slug penetrates Wall. Map ----- +----------------------------------------------------+ | | | | | | | | | | | | | | | | | | | ?????????????????????????????????????????????? | | ?????????????????????????????????????????????? | | ?????????????????????????????????????????????? | | ?????????????????????????????????????????????? | | ?????????????????????????????????????????????? | | ?????????????????????????????????????????????? | | ?????????????????????????????????????????????? | | ?????????????????????????????????????????????? | | ?????????????????????????????????????????????? | | ?????????????????????????????????????????????? | | ?????????????????????????????############????? | | ?????????????????????????????# # #????? | | ?????????????????????????????# # """#????? | | ???????????????# ?????####???# # """#????? | | ???????????????# ####%;##### + """#????? | | ???????????????# g # """#????? | | ????????????? + @h r #= #????? | | ???????????????# % r %= ########????? | | ???????????????# ######;+#######???????????? | | ???????????????# ?????# #??????????????? | | ???????????????# ??????# ! #??????????????? | | ???????????????#???????# #??????????????? | | ???????????????????????# #??????????????? | | ???????????????????????+ #??????????????? | | ??????????????????????## #??????????????? | | ???????????????????????########??????????????? | | ?????????????????????????????????????????????? | | ?????????????????????????????????????????????? | | ?????????????????????????????????????????????? | | ?????????????????????????????????????????????? | | ?????????????????????????????????????????????? | | ?????????????????????????????????????????????? | | ?????????????????????????????????????????????? | | ?????????????????????????????????????????????? | | ?????????????????????????????????????????????? | | ?????????????????????????????????????????????? | | ?????????????????????????????????????????????? | | ?????????????????????????????????????????????? | | ?????????????????????????????????????????????? | | ?????????????????????????????????????????????? | | ?????????????????????????????????????????????? | +----------------------------------------------------+ Best States ------------- Heat Dissipation 31 Energy Generation 10 Energy Capacity 500 Matter Stores 300 Matter Capacity 300 Sight Range 16 Terrain Scan Density 10 Evasion (%) 55 Item Schematics ----------------- None Robot Schematics ------------------ None Fabricated ------------ Nothing Repaired ---------- Nothing Studied --------- None Alien Tech Used ----------------- None Achievements -------------- None Challenges ------------ None Game ------ Seed EnergyThermalDisintegrator Manual? 0 Play Time 00:13:36 Cumulative 3.7 hours Start 2025.12.28 @ 15:32:55 End 2025.12.28 @ 15:44:44 Sessions 1 Manual Loads 0 Difficulty Rogue Special Mode None Game No. 11 Rogue 11 Adventurer 0 Explorer 0 Win Type - Total 0 Types 0/0/0/0/0/0/0/0/0/0 Lore% 6 Gallery% 8 Achievement% 10 Wizard Run 0 Options --------- Layout 1 ASCII 1 Keyboard 0 Movement Mouse Keybinds 0 Fullscreen 2 Font 32/SmallcapsGlow Map View 50x35 Zoom Use 0% Tactical HUD 0 Map Filters NONE Filters NONE Steam 1 RUN: dd4e04fc-659b-4c0a-be84-6ef09de7601b